fUSD/lending_fUSD_20260703
["ID","MTS","AMOUNT","RATE_DAILY","PERIOD"]
[426933402,1783025444000,-300.0,0.00033538,2]
[426933403,1783025444000,-300.0,0.00033538,2]
[426933399,1783025444000,-300.0,0.00033538,2]
[426933390,1783025444000,-300.0,0.00033538,2]
[426933372,1783025444000,-562.71036719,0.00033538,2]
[426933344,1783025444000,-536.83065571,0.00033538,2]
[426933373,1783025444000,-300.0,0.00033538,2]
[426933345,1783025444000,-300.0,0.00033538,2]
[426933346,1783025444000,-730.2023839,0.00033538,2]
[426933348,1783025444000,-302.19910179,0.00033538,2]
[426933343,1783025444000,-345.85845793,0.00033538,2]
[426933349,1783025444000,-532.08764038,0.00033538,2]
[426933347,1783025444000,-303.40388377,0.00033538,2]
[426933353,1783025444000,-300.0,0.00033538,2]
[426933369,1783025444000,-569.07827579,0.00033538,2]
[426933355,1783025444000,-300.0,0.00033538,2]
[426933354,1783025444000,-300.0,0.00033538,2]
[426933364,1783025444000,-300.0,0.00033538,2]
[426933356,1783025444000,-345.80256672,0.00033538,2]
[426933363,1783025444000,-300.0,0.00033538,2]
[426933352,1783025444000,-334.19113658,0.00033538,2]
[426933358,1783025444000,-477.87860374,0.00033538,2]
[426933357,1783025444000,-529.6723478,0.00033538,2]
[426933375,1783025444000,-300.0,0.00033538,2]
[426933374,1783025444000,-514.02377053,0.00033538,2]
[426933371,1783025444000,-300.0,0.00033538,2]
[426933366,1783025444000,-300.0,0.00033538,2]
[426933367,1783025444000,-597.3150425,0.00033538,2]
[426933370,1783025444000,-300.0,0.00033538,2]
[426933365,1783025444000,-564.57560998,0.00033538,2]
[426933361,1783025444000,-954.40977015,0.00033538,2]
[426933362,1783025444000,-1807.51296116,0.00033538,2]
[426933360,1783025444000,-300.0,0.00033538,2]
[426933359,1783025444000,-300.0,0.00033538,2]
[426933368,1783025444000,-311.25771399,0.00033538,2]
[426933437,1783025445000,-300.0,0.00033538,2]
[426933446,1783025445000,-292.9445201,0.00033541,60]
[426933439,1783025445000,-1101.26754386,0.00033538,2]
[426933444,1783025445000,-649.2014577,0.00033541,60]
[426933441,1783025445000,-389.37725346,0.00033538,2]
[426933438,1783025445000,-300.0,0.00033538,2]
[426933445,1783025445000,-748.4983794,0.00033541,60]
[426933435,1783025445000,-446.20103305,0.00033538,2]
[426933436,1783025445000,-300.0,0.00033538,2]
[426933431,1783025445000,-300.0,0.00033538,2]
[426933440,1783025445000,-300.0,0.00033538,2]
[426933442,1783025445000,-358.4210542,0.00033541,60]
[426933470,1783025445000,-663.0,0.00033943,120]
[426933447,1783025445000,-243.0690201,0.00033541,60]
[426933458,1783025445000,-151.0,0.00033842,14]
[426933448,1783025445000,-249.0017556,0.00033541,60]
[426933456,1783025445000,-257.0,0.000338,7]
[426933451,1783025445000,-174.44,0.00033588,30]
[426933457,1783025445000,-4465.67301164,0.00033816,30]
[426933449,1783025445000,-2337.0,0.00033546,11]
[426933452,1783025445000,-174.44,0.00033588,30]
[426933455,1783025445000,-500.0,0.0003377,2]
[426933453,1783025445000,-358.96,0.00033699,3]
[426933450,1783025445000,-3555.35,0.00033554,7]
[426933454,1783025445000,-161.0,0.0003372,11]
[426933428,1783025445000,-584.85636615,0.00033538,2]
[426933443,1783025445000,-500.0,0.00033541,60]
[426933430,1783025445000,-300.0,0.00033538,2]
[426933413,1783025445000,-300.0,0.00033538,2]
[426933429,1783025445000,-454.31833835,0.00033538,2]
[426933460,1783025445000,-467.82,0.00033873,120]
[426933410,1783025445000,-300.0,0.00033538,2]
[426933411,1783025445000,-954.40977015,0.00033538,2]
[426933404,1783025445000,-300.0,0.00033538,2]
[426933409,1783025445000,-300.0,0.00033538,2]
[426933405,1783025445000,-300.0,0.00033538,2]
[426933408,1783025445000,-529.6723478,0.00033538,2]
[426933407,1783025445000,-345.80256672,0.00033538,2]
[426933406,1783025445000,-300.0,0.00033538,2]
[426933412,1783025445000,-1807.51296116,0.00033538,2]
[426933415,1783025445000,-564.57560998,0.00033538,2]
[426933418,1783025445000,-311.25771399,0.00033538,2]
[426933432,1783025445000,-300.0,0.00033538,2]
[426933414,1783025445000,-300.0,0.00033538,2]
[426933417,1783025445000,-597.3150425,0.00033538,2]
[426933420,1783025445000,-569.07827579,0.00033538,2]
[426933422,1783025445000,-300.0,0.00033538,2]
[426933421,1783025445000,-547.87796085,0.00033538,2]
[426933419,1783025445000,-300.0,0.00033538,2]
[426933423,1783025445000,-493.4640333,0.00033538,2]
[426933426,1783025445000,-514.02377053,0.00033538,2]
[426933427,1783025445000,-300.0,0.00033538,2]
[426933425,1783025445000,-308.24562642,0.00033538,2]
[426933424,1783025445000,-562.71036719,0.00033538,2]
[426933434,1783025445000,-300.0,0.00033538,2]
[426933433,1783025445000,-300.0,0.00033538,2]
[426933416,1783025445000,-300.0,0.00033538,2]
[426933461,1783025445000,-166.62,0.00033882,2]
[426933480,1783025445000,-663.0,0.00033963,120]
[426933459,1783025445000,-37971.0,0.00033845,20]
[426933494,1783025445000,-500.0,0.00033973,7]
[426933497,1783025445000,-500.0,0.00033973,7]
[426933507,1783025445000,-158.92821099,0.00034,14]
[426933499,1783025445000,-500.0,0.00033973,7]
[426933498,1783025445000,-500.0,0.00033973,7]
[426933503,1783025445000,-617.98708688,0.00033973,7]
[426933500,1783025445000,-500.0,0.00033973,7]
[426933496,1783025445000,-500.0,0.00033973,7]
[426933502,1783025445000,-500.0,0.00033973,7]
[426933505,1783025445000,-800.0,0.00034,7]
[426933506,1783025445000,-1608.26009265,0.00034,2]
[426933471,1783025445000,-2380.0,0.00033953,120]
[426933493,1783025445000,-500.0,0.00033973,7]
[426933504,1783025445000,-2000.0,0.00033999,3]
[426933512,1783025445000,-296.19,0.00034115,41]
[426933513,1783025445000,-6532.1,0.00034208,14]
[426933516,1783025445000,-219.32189243,0.00034353,14]
[426933511,1783025445000,-1825.54,0.000341,7]
[426933517,1783025445000,-6896.2026673,0.00034374,2]
[426933515,1783025445000,-396.0,0.00034333,30]
[426933510,1783025445000,-200.0,0.000341,13]
[426933509,1783025445000,-150.0,0.00034002,2]
[426933514,1783025445000,-3555.35,0.00034239,7]
[426933518,1783025445000,-5000.0,0.00034374,2]
[426933520,1783025445000,-5000.0,0.00034374,2]
[426933519,1783025445000,-5000.0,0.00034374,2]
[426933508,1783025445000,-5073.25041755,0.00034,120]
[426933492,1783025445000,-500.0,0.00033973,7]
[426933501,1783025445000,-500.0,0.00033973,7]
[426933495,1783025445000,-500.0,0.00033973,7]
[426933490,1783025445000,-500.0,0.00033973,7]
[426933462,1783025445000,-500.0,0.00033899,7]
[426933466,1783025445000,-13309.59647954,0.0003392,2]
[426933469,1783025445000,-2380.0,0.00033943,120]
[426933465,1783025445000,-24999.999999,0.000339,12]
[426933468,1783025445000,-663.0,0.00033943,120]
[426933467,1783025445000,-2380.0,0.00033943,120]
[426933464,1783025445000,-500.0,0.00033899,120]
[426933483,1783025445000,-2380.0,0.00033963,120]
[426933472,1783025445000,-663.0,0.00033953,120]
[426933474,1783025445000,-663.0,0.00033953,120]
[426933477,1783025445000,-2383.09,0.00033953,120]
[426933473,1783025445000,-2380.0,0.00033953,120]
[426933489,1783025445000,-500.0,0.00033973,7]
[426933491,1783025445000,-500.0,0.00033973,7]
[426933475,1783025445000,-2380.0,0.00033953,120]
[426933485,1783025445000,-2380.0,0.00033963,120]
[426933486,1783025445000,-663.0,0.00033963,120]
[426933487,1783025445000,-500.0,0.00033973,7]
[426933484,1783025445000,-663.0,0.00033963,120]
[426933488,1783025445000,-500.0,0.00033973,7]
[426933479,1783025445000,-2380.0,0.00033963,120]
[426933478,1783025445000,-665.36,0.00033953,120]
[426933476,1783025445000,-663.0,0.00033953,120]
[426933482,1783025445000,-663.0,0.00033963,120]
[426933481,1783025445000,-2380.0,0.00033963,120]
[426933561,1783025446000,-134673.81072927,0.00035,7]
[426933559,1783025446000,-1500.0,0.00035,2]
[426933560,1783025446000,-1500.0,0.00035,2]
[426933558,1783025446000,-1608.0,0.00035,30]
[426933566,1783025446000,-1500.0,0.00035,2]
[426933551,1783025446000,-18619.5,0.00035,2]
[426933556,1783025446000,-800.0,0.00035,7]
[426933555,1783025446000,-4250.92914416,0.00035,7]
[426933554,1783025446000,-22500.0,0.00035,2]
[426933552,1783025446000,-22499.99,0.00035,2]
[426933565,1783025446000,-1500.0,0.00035,2]
[426933564,1783025446000,-1500.0,0.00035,2]
[426933563,1783025446000,-134673.81072927,0.00035,7]
[426933571,1783025446000,-419.27000163,0.00035,120]
[426933557,1783025446000,-9656.2007,0.00035,2]
[426933568,1783025446000,-6298.95861685,0.00035,10]
[426933576,1783025446000,-288.29569325,0.00035,120]
[426933577,1783025446000,-10121.19455735,0.00035,30]
[426933578,1783025446000,-1368.62423063,0.00035,7]
[426933567,1783025446000,-31086.03242333,0.00035,2]
[426933569,1783025446000,-44466.17,0.00035,15]
[426933572,1783025446000,-4106.01184769,0.00035,120]
[426933570,1783025446000,-221.51027254,0.00035,30]
[426933573,1783025446000,-21858.61884459,0.00035,120]
[426933575,1783025446000,-201139.4909951,0.00035,10]
[426933550,1783025446000,-31490.90138361,0.00034999,14]
[426933562,1783025446000,-1500.0,0.00035,2]
[426933546,1783025446000,-600.92514696,0.00034968,2]
[426933574,1783025446000,-498.03499423,0.00035,7]
[426933547,1783025446000,-300.0,0.0003497,2]
[426933521,1783025446000,-5000.0,0.00034374,2]
[426933522,1783025446000,-573.3506609,0.00034403,10]
[426933523,1783025446000,-151.0,0.00034406,7]
[426933525,1783025446000,-800.0,0.000345,7]
[426933527,1783025446000,-298470.93603605,0.00034567,120]
[426933526,1783025446000,-197.14808368,0.00034534,7]
[426933529,1783025446000,-1722.47016,0.000347,120]
[426933524,1783025446000,-152.0,0.00034406,7]
[426933528,1783025446000,-195.54963626,0.00034685,30]
[426933534,1783025446000,-1000.0,0.0003482,2]
[426933536,1783025446000,-195.54963626,0.00034822,30]
[426933531,1783025446000,-1500.0,0.00034795,2]
[426933538,1783025446000,-156.18446743,0.0003483,7]
[426933537,1783025446000,-500.0,0.0003483,120]
[426933533,1783025446000,-737567.36594761,0.000348,7]
[426933540,1783025446000,-600.92514696,0.0003487,2]
[426933530,1783025446000,-366.82,0.00034713,3]
[426933532,1783025446000,-9318.0,0.000348,2]
[426933539,1783025446000,-37971.0,0.00034831,20]
[426933541,1783025446000,-5150.0,0.00034876,10]
[426933535,1783025446000,-500.0,0.0003482,7]
[426933543,1783025446000,-1825.54,0.000349,7]
[426933553,1783025446000,-22500.0,0.00035,2]
[426933544,1783025446000,-195.54963626,0.00034959,30]
[426933545,1783025446000,-6532.1,0.00034961,14]
[426933542,1783025446000,-663.08981562,0.0003488,120]
[426933548,1783025446000,-1000.0,0.0003497,2]
[426933549,1783025446000,-2337.0,0.00034983,11]
[426933579,1783025446000,-1020.87315972,0.00035,120]
[426933633,1783025446000,-215.49010706,0.000353,120]
[426933582,1783025446000,-201.33512846,0.00035068,30]
[426933610,1783025446000,-6089.0,0.00035276,2]
[426933604,1783025446000,-195.54963626,0.00035233,30]
[426933614,1783025446000,-203.75716977,0.000353,120]
[426933617,1783025446000,-183.54174638,0.000353,120]
[426933616,1783025446000,-190.93095594,0.000353,120]
[426933619,1783025446000,-177.86004915,0.000353,120]
[426933618,1783025446000,-199.67897868,0.000353,120]
[426933620,1783025446000,-186.89504541,0.000353,120]
[426933625,1783025446000,-190.95961087,0.000353,120]
[426933624,1783025446000,-188.92540657,0.000353,120]
[426933623,1783025446000,-186.03868974,0.000353,120]
[426933622,1783025446000,-172.22374087,0.000353,120]
[426933621,1783025446000,-187.60966566,0.000353,120]
[426933626,1783025446000,-172.09574065,0.000353,120]
[426933627,1783025446000,-167.06326901,0.000353,120]
[426933629,1783025446000,-173.45250248,0.000353,120]
[426933630,1783025446000,-16932.40321982,0.000353,30]
[426933636,1783025446000,-2337.0,0.00035303,11]
[426933637,1783025446000,-200.0,0.00035303,5]
[426933628,1783025446000,-200.0,0.000353,120]
[426933631,1783025446000,-16932.4032198,0.000353,30]
[426933635,1783025446000,-201.49498663,0.000353,120]
[426933634,1783025446000,-227.89821908,0.000353,120]
[426933638,1783025446000,-200.0,0.00035304,5]
[426933632,1783025446000,-16932.4032198,0.000353,30]
[426933640,1783025446000,-22500.0,0.00035313,2]
[426933581,1783025446000,-22500.0,0.00035062,2]
[426933613,1783025446000,-206.3349606,0.000353,120]
[426933612,1783025446000,-216.0,0.00035276,2]
[426933639,1783025446000,-200.0,0.00035307,5]
[426933611,1783025446000,-3652.0,0.00035276,2]
[426933608,1783025446000,-1278.0,0.00035276,2]
[426933590,1783025446000,-22500.0,0.00035125,2]
[426933583,1783025446000,-2000.0,0.00035081,28]
[426933584,1783025446000,-453.0,0.00035084,11]
[426933585,1783025446000,-195.54963626,0.00035096,30]
[426933586,1783025446000,-200.0,0.000351,14]
[426933587,1783025446000,-198.2625,0.00035108,13]
[426933588,1783025446000,-270.93,0.00035108,13]
[426933589,1783025446000,-198.26,0.00035108,13]
[426933592,1783025446000,-2337.0,0.00035167,11]
[426933601,1783025446000,-6493.676491,0.00035187,7]
[426933600,1783025446000,-6493.676491,0.00035187,7]
[426933602,1783025446000,-22500.0,0.00035188,2]
[426933580,1783025446000,-22500.0,0.00035062,2]
[426933594,1783025446000,-251.576064,0.00035187,7]
[426933615,1783025446000,-257.44636856,0.000353,120]
[426933609,1783025446000,-223.0,0.00035276,2]
[426933606,1783025446000,-22500.0,0.0003525,2]
[426933607,1783025446000,-22500.0,0.0003525,2]
[426933591,1783025446000,-22500.0,0.00035125,2]
[426933603,1783025446000,-22500.0,0.00035188,2]
[426933605,1783025446000,-600.92514696,0.00035241,2]
[426933596,1783025446000,-251.576064,0.00035187,7]
[426933599,1783025446000,-6493.676491,0.00035187,7]
[426933597,1783025446000,-251.576064,0.00035187,7]
[426933595,1783025446000,-251.576064,0.00035187,7]
[426933593,1783025446000,-170.06810672,0.00035181,2]
[426933598,1783025446000,-6493.676491,0.00035187,7]
[426933675,1783025447000,-195.54963626,0.00035534,30]
[426933678,1783025447000,-500.0,0.00035552,60]
[426933679,1783025447000,-500.0,0.00035552,60]
[426933677,1783025447000,-500.0,0.00035552,60]
[426933673,1783025447000,-800.0,0.000355,7]
[426933674,1783025447000,-600.92514696,0.00035514,2]
[426933671,1783025447000,-2337.0,0.00035494,11]
[426933669,1783025447000,-4286.03,0.00035438,2]
[426933672,1783025447000,-22500.0,0.000355,2]
[426933680,1783025447000,-22500.0,0.00035563,2]
[426933676,1783025447000,-312.21,0.0003555,7]
[426933683,1783025447000,-220.46,0.00035616,120]
[426933686,1783025447000,-198.2625,0.00035656,13]
[426933682,1783025447000,-4533.61218922,0.0003561,2]
[426933684,1783025447000,-3739.0,0.00035616,120]
[426933689,1783025447000,-161.0,0.00035667,11]
[426933690,1783025447000,-195.54963626,0.00035671,30]
[426933691,1783025447000,-150.0,0.00035702,2]
[426933685,1783025447000,-193.0,0.00035616,120]
[426933692,1783025447000,-1189.443,0.00035706,30]
[426933688,1783025447000,-198.26,0.00035656,13]
[426933687,1783025447000,-270.93,0.00035656,13]
[426933694,1783025447000,-288.75,0.00035726,3]
[426933670,1783025447000,-201.33512846,0.00035452,30]
[426933695,1783025447000,-166.62,0.00035747,2]
[426933681,1783025447000,-171748.65457846,0.0003561,2]
[426933667,1783025447000,-2027.81806257,0.00035423,15]
[426933652,1783025447000,-300.0,0.00035398,2]
[426933665,1783025447000,-167.9096101,0.00035401,120]
[426933704,1783025447000,-500.0,0.0003589,7]
[426933650,1783025447000,-150.0,0.00035398,5]
[426933641,1783025447000,-22500.0,0.00035313,2]
[426933646,1783025447000,-195.54963626,0.00035397,30]
[426933644,1783025447000,-22500.0,0.00035375,2]
[426933642,1783025447000,-314.0,0.00035347,11]
[426933643,1783025447000,-255.10216008,0.00035358,14]
[426933648,1783025447000,-300.0,0.00035398,2]
[426933645,1783025447000,-22500.0,0.00035375,2]
[426933649,1783025447000,-234.68,0.00035398,2]
[426933647,1783025447000,-300.0,0.00035398,2]
[426933655,1783025447000,-1500.0,0.00035399,2]
[426933657,1783025447000,-500.0,0.00035401,120]
[426933653,1783025447000,-203.0,0.00035398,2]
[426933651,1783025447000,-1524.0,0.00035398,7]
[426933654,1783025447000,-483.0,0.00035398,7]
[426933656,1783025447000,-358.4210541,0.00035401,120]
[426933658,1783025447000,-649.2014576,0.00035401,120]
[426933661,1783025447000,-243.0690201,0.00035401,120]
[426933659,1783025447000,-748.4983793,0.00035401,120]
[426933660,1783025447000,-292.94452,0.00035401,120]
[426933663,1783025447000,-249.0017555,0.00035401,120]
[426933664,1783025447000,-214.3227063,0.00035401,120]
[426933662,1783025447000,-231.028871,0.00035401,120]
[426933666,1783025447000,-207.61593733,0.00035403,2]
[426933668,1783025447000,-22500.0,0.00035438,2]
[426933696,1783025447000,-5000.0,0.00035761,2]
[426933702,1783025447000,-299.701744,0.00035836,100]
[426933755,1783025447000,-151.0,0.00036,30]
[426933730,1783025447000,-158.0,0.00036,30]
[426933735,1783025447000,-153.0,0.00036,30]
[426933738,1783025447000,-9864.60375368,0.00036,5]
[426933732,1783025447000,-156.0,0.00036,30]
[426933731,1783025447000,-154.0,0.00036,30]
[426933733,1783025447000,-156.0,0.00036,30]
[426933729,1783025447000,-158.0,0.00036,30]
[426933734,1783025447000,-151.0,0.00036,30]
[426933740,1783025447000,-1608.0,0.00036,30]
[426933737,1783025447000,-86125.640231,0.00036,30]
[426933741,1783025447000,-176.6451122,0.00036,105]
[426933736,1783025447000,-50151.96694724,0.00036,30]
[426933728,1783025447000,-155.0,0.00036,30]
[426933754,1783025447000,-323.0,0.00036,30]
[426933753,1783025447000,-199.97379873,0.00036,120]
[426933745,1783025447000,-35000.0,0.00036,120]
[426933743,1783025447000,-154.0,0.00036,30]
[426933746,1783025447000,-156.0,0.00036,30]
[426933742,1783025447000,-29542.22024358,0.00036,14]
[426933750,1783025447000,-3664.28772692,0.00036,20]
[426933744,1783025447000,-10000.0,0.00036,120]
[426933748,1783025447000,-21812.17379297,0.00036,30]
[426933751,1783025447000,-5000.0,0.00036,2]
[426933747,1783025447000,-5724.55059496,0.00036,90]
[426933749,1783025447000,-300000.0,0.00036,3]
[426933703,1783025447000,-2337.0,0.00035858,11]
[426933752,1783025447000,-1293.40795003,0.00036,120]
[426933727,1783025447000,-7622.0,0.00036,106]
[426933739,1783025447000,-800.0,0.00036,7]
[426933720,1783025447000,-179.361022,0.00035987,7]
[426933724,1783025447000,-151.0,0.00035987,30]
[426933697,1783025447000,-600.92514696,0.00035786,2]
[426933699,1783025447000,-572.150375,0.000358,30]
[426933701,1783025447000,-37971.0,0.00035817,20]
[426933700,1783025447000,-195.54963626,0.00035808,30]
[426933698,1783025447000,-13465.86020687,0.000358,90]
[426933705,1783025447000,-500.0,0.0003589,120]
[426933708,1783025447000,-151.0,0.00035894,7]
[426933707,1783025447000,-17379.07,0.0003589,15]
[426933706,1783025447000,-50000.0,0.0003589,15]
[426933714,1783025447000,-110193.22138064,0.00035987,14]
[426933716,1783025447000,-573.993131,0.00035987,30]
[426933715,1783025447000,-573.993131,0.00035987,30]
[426933693,1783025447000,-6532.1,0.00035715,14]
[426933725,1783025447000,-114403.63526878,0.0003599,120]
[426933722,1783025447000,-179.361022,0.00035987,7]
[426933723,1783025447000,-151.0,0.00035987,30]
[426933726,1783025447000,-609.09,0.00035992,2]
[426933709,1783025447000,-152.0,0.00035894,7]
[426933719,1783025447000,-179.361022,0.00035987,7]
[426933721,1783025447000,-179.361022,0.00035987,7]
[426933718,1783025447000,-573.993131,0.00035987,30]
[426933713,1783025447000,-439.36062596,0.00035971,2]
[426933712,1783025447000,-195.54963626,0.00035945,30]
[426933710,1783025447000,-1802.72805844,0.000359,30]
[426933711,1783025447000,-161.0,0.00035923,11]
[426933717,1783025447000,-573.993131,0.00035987,30]
[426933794,1783025448000,-3648.06616662,0.00036261,8]
[426933796,1783025448000,-790.50869764,0.0003629,11]
[426933798,1783025448000,-615.04557143,0.00036377,120]
[426933793,1783025448000,-3648.06616662,0.00036261,8]
[426933803,1783025448000,-146120.41789669,0.000364,2]
[426933786,1783025448000,-3648.06616662,0.00036261,8]
[426933790,1783025448000,-3648.06616662,0.00036261,8]
[426933781,1783025448000,-161.0,0.0003621,11]
[426933789,1783025448000,-3648.06616662,0.00036261,8]
[426933791,1783025448000,-3648.06616662,0.00036261,8]
[426933802,1783025448000,-257.44636856,0.000364,120]
[426933785,1783025448000,-3648.06616662,0.00036261,8]
[426933804,1783025448000,-183.54174638,0.000364,120]
[426933792,1783025448000,-3648.06616662,0.00036261,8]
[426933807,1783025448000,-186.89504541,0.000364,120]
[426933800,1783025448000,-151.0,0.00036397,14]
[426933801,1783025448000,-2485.54,0.00036399,14]
[426933797,1783025448000,-600.92514696,0.00036332,2]
[426933795,1783025448000,-3648.06616662,0.00036261,8]
[426933805,1783025448000,-199.67897868,0.000364,120]
[426933808,1783025448000,-3136.87961408,0.000364,7]
[426933811,1783025448000,-186.03868974,0.000364,120]
[426933813,1783025448000,-188.92540657,0.000364,120]
[426933810,1783025448000,-172.22374087,0.000364,120]
[426933806,1783025448000,-177.86004915,0.000364,120]
[426933812,1783025448000,-190.95961087,0.000364,120]
[426933815,1783025448000,-167.06326901,0.000364,120]
[426933799,1783025448000,-631.64937547,0.00036377,120]
[426933787,1783025448000,-3648.06616662,0.00036261,8]
[426933809,1783025448000,-187.60966566,0.000364,120]
[426933784,1783025448000,-3648.06616665,0.00036261,8]
[426933767,1783025448000,-600.92514696,0.00036059,2]
[426933758,1783025448000,-6855.010299,0.00036,30]
[426933762,1783025448000,-6855.010299,0.00036,30]
[426933759,1783025448000,-151.0,0.00036,30]
[426933761,1783025448000,-6855.010299,0.00036,30]
[426933763,1783025448000,-151.0,0.00036,30]
[426933760,1783025448000,-6855.010299,0.00036,30]
[426933766,1783025448000,-1368.0,0.00036,7]
[426933757,1783025448000,-151.0,0.00036,30]
[426933756,1783025448000,-151.0,0.00036,30]
[426933765,1783025448000,-155.0,0.00036,30]
[426933764,1783025448000,-255.871904,0.00036,30]
[426933768,1783025448000,-20865.4271,0.00036061,30]
[426933777,1783025448000,-275.0,0.00036192,60]
[426933778,1783025448000,-198.2625,0.00036204,13]
[426933773,1783025448000,-156.361367,0.00036137,104]
[426933771,1783025448000,-200.0,0.000361,14]
[426933772,1783025448000,-150.0,0.00036105,2]
[426933770,1783025448000,-195.54963626,0.00036082,30]
[426933769,1783025448000,-5928.37725196,0.0003608,2]
[426933776,1783025448000,-2337.0,0.00036178,11]
[426933774,1783025448000,-277.0,0.0003614,30]
[426933779,1783025448000,-270.93,0.00036204,13]
[426933775,1783025448000,-1250.03,0.00036165,2]
[426933780,1783025448000,-198.26,0.00036204,13]
[426933782,1783025448000,-195.54963626,0.00036219,30]
[426933783,1783025448000,-2000.0,0.00036258,8]
[426933788,1783025448000,-3648.06616662,0.00036261,8]
[426933814,1783025448000,-172.09574065,0.000364,120]
[426933873,1783025448000,-1800.0,0.00036516,2]
[426933827,1783025448000,-6532.1,0.00036468,14]
[426933851,1783025448000,-6855.010299,0.000365,30]
[426933846,1783025448000,-179.361022,0.000365,7]
[426933847,1783025448000,-179.361022,0.000365,7]
[426933850,1783025448000,-151.0,0.000365,30]
[426933854,1783025448000,-6855.010299,0.000365,30]
[426933855,1783025448000,-151.0,0.000365,30]
[426933864,1783025448000,-252.39265329,0.00036515,2]
[426933858,1783025448000,-251.576064,0.000365,30]
[426933863,1783025448000,-6493.676491,0.000365,30]
[426933856,1783025448000,-251.576064,0.000365,30]
[426933857,1783025448000,-251.576064,0.000365,30]
[426933865,1783025448000,-230.88823163,0.00036515,2]
[426933859,1783025448000,-251.576064,0.000365,30]
[426933861,1783025448000,-6493.676491,0.000365,30]
[426933862,1783025448000,-6493.676491,0.000365,30]
[426933860,1783025448000,-6493.676491,0.000365,30]
[426933877,1783025448000,-1800.0,0.00036516,2]
[426933867,1783025448000,-1800.0,0.00036516,2]
[426933871,1783025448000,-1800.0,0.00036516,2]
[426933868,1783025448000,-1800.0,0.00036516,2]
[426933870,1783025448000,-1800.0,0.00036516,2]
[426933869,1783025448000,-1800.0,0.00036516,2]
[426933866,1783025448000,-1800.0,0.00036516,2]
[426933872,1783025448000,-1800.0,0.00036516,2]
[426933816,1783025448000,-200.0,0.000364,120]
[426933876,1783025448000,-1800.0,0.00036516,2]
[426933874,1783025448000,-1800.0,0.00036516,2]
[426933849,1783025448000,-270.200615,0.000365,30]
[426933848,1783025448000,-151.0,0.000365,30]
[426933875,1783025448000,-1800.0,0.00036516,2]
[426933844,1783025448000,-179.361022,0.000365,7]
[426933845,1783025448000,-179.361022,0.000365,7]
[426933817,1783025448000,-173.45250248,0.000364,120]
[426933819,1783025448000,-227.89821908,0.000364,120]
[426933826,1783025448000,-300.0,0.00036464,30]
[426933821,1783025448000,-500.0,0.00036409,7]
[426933823,1783025448000,-399.37,0.00036418,30]
[426933820,1783025448000,-1000.0,0.00036409,2]
[426933822,1783025448000,-318.45334534,0.00036412,2]
[426933824,1783025448000,-863.27,0.00036418,30]
[426933825,1783025448000,-158.364377,0.00036438,107]
[426933829,1783025448000,-30839.65949454,0.00036499,30]
[426933839,1783025448000,-573.993131,0.000365,30]
[426933840,1783025448000,-573.993131,0.000365,30]
[426933828,1783025448000,-2337.0,0.00036498,11]
[426933818,1783025448000,-215.49010706,0.000364,120]
[426933838,1783025448000,-321.64106885,0.000365,15]
[426933837,1783025448000,-573.993131,0.000365,30]
[426933841,1783025448000,-4486.89835166,0.000365,120]
[426933853,1783025448000,-6855.010299,0.000365,30]
[426933842,1783025448000,-151348.31,0.000365,30]
[426933834,1783025448000,-36014.93015063,0.000365,30]